bitfinex/quotes_SOLUSD_20220119
["timestamp","ask_amount","ask_price","bid_price","bid_amount"]
[1642602963886,39.3048,137.49,137.4,0.25]
[1642602964086,2.91,137.49,137.41,10.53]
[1642602964287,2.91,137.5,137.42,0.25]
[1642602964886,37.79240794,137.49,137.42,0.25]
[1642602965086,2.91,137.48,137.42,0.25]
[1642602965686,0.25,137.47,137.41,10.53]
[1642602965886,2.91,137.46,137.39,10.53]
[1642602966086,2.91,137.46,137.37,10.53]
[1642602966289,0.25,137.45,137.37,6.0]
[1642602966488,2.91,137.44,137.37,6.0]
[1642602966690,0.25,137.43,137.38,10.53]
[1642602966889,11.1702,137.43,137.38,10.53]
[1642602967290,10.9202,137.43,137.38,10.53]
[1642602967893,10.9202,137.43,137.39,0.25]
[1642602968091,10.9202,137.43,137.38,10.53]
[1642602968691,10.9193,137.44,137.38,10.53]
[1642602969492,10.9193,137.44,137.39,0.25]
[1642602969725,0.25,137.43,137.38,10.53]
[1642602969923,0.25,137.43,137.36,10.53]
[1642602969924,10.922,137.42,137.36,10.53]
[1642602970123,42.8199196,137.41,137.36,10.53]
[1642602970325,45.9809196,137.41,137.33,10.53]
[1642602970923,10.9243,137.4,137.33,10.53]
[1642602971123,2.911,137.39,137.33,10.53]
[1642602971324,0.25,137.39,137.33,10.53]
[1642602971535,2.911,137.4,137.33,10.53]
[1642602972423,10.9243,137.38,137.33,10.53]
[1642602972822,2.911,137.4,137.33,11.88869576]
[1642602973022,2.912,137.43,137.34,6.0]
[1642602973223,25.9926,137.45,137.35,10.53]
[1642602973423,2.911,137.45,137.35,11.88869576]
[1642602973624,2.911,137.45,137.36,7.35869576]
[1642602973824,1.99123781,137.46,137.37,10.53]
[1642602974026,51.20150819,137.47,137.38,6.0]
[1642602974225,2.91,137.46,137.39,10.53]
[1642602974422,49.21027038,137.47,137.39,10.53]
[1642602974624,1.99123781,137.48,137.4,0.25]
[1642602974822,2.91,137.47,137.4,10.78]
[1642602975022,2.91,137.47,137.4,21.6964]
[1642602975422,2.91,137.47,137.4,10.78]
[1642602975624,2.91,137.47,137.4,12.14302278]
[1642602975824,48.36214194,137.49,137.4,12.14302278]
[1642602976227,59.27754194,137.49,137.4,21.6962]
[1642602976927,1.99123781,137.48,137.4,21.6962]
[1642602977126,46.37090413,137.49,137.4,23.05922278]
[1642602977626,46.37090413,137.49,137.41,16.9152]
[1642602977827,46.37090413,137.49,137.42,10.53]
[1642602978026,3.16,137.48,137.42,10.53]
[1642602978625,10.9181,137.47,137.42,10.53]
[1642602978825,3.16,137.48,137.36,10.9188]
[1642602978826,3.16,137.46,137.36,10.9188]
[1642602979029,3.16,137.46,137.38,10.78]
[1642602979729,10.9191,137.45,137.38,10.78]
[1642602979926,35.08646976,137.44,137.38,10.78]
[1642602980930,46.00586976,137.44,137.38,10.78]
[1642602981831,46.00586976,137.44,137.38,10.53]
[1642602982632,15.81973781,137.46,137.39,0.25]
[1642602982834,1.99123781,137.47,137.4,10.53]
[1642602983031,29.31163781,137.48,137.4,10.53]
[1642602983232,0.25,137.47,137.41,0.25]
[1642602983432,2.91,137.46,137.41,0.25]
[1642602983632,2.91,137.46,137.41,10.78]
[1642602983832,37.31853781,137.48,137.41,12.14302278]
[1642602983833,1.99123781,137.48,137.41,12.14302278]
[1642602984034,1.99123781,137.5,137.41,12.14302278]
[1642602984433,1.99123781,137.5,137.42,6.0]
[1642602984636,70.83266425,137.51,137.44,10.9127]
[1642602984834,70.83266425,137.51,137.44,21.4427]
[1642602985133,70.83266425,137.51,137.45,0.25]
[1642602985333,25.97833781,137.51,137.45,0.25]
[1642602985537,0.37536257,137.49,137.45,0.25]
[1642602989034,0.37536257,137.49,137.45,17.1624]
[1642602989237,0.37536257,137.49,137.46,10.78]
[1642602989438,0.37536257,137.49,137.47,10.53]
[1642602989639,0.37536257,137.49,137.48,6.06439994]
[1642602989837,0.37536257,137.49,137.48,22.84439994]
[1642602990039,0.37536257,137.49,137.48,22.59439994]
[1642602990238,0.37536257,137.49,137.48,22.84439994]
[1642602991240,0.37536257,137.49,137.48,33.75299994]
[1642602992038,2.908,137.55,137.48,33.75299994]
[1642602992241,50.34733781,137.58,137.49,0.25]
[1642602992442,2.908,137.58,137.51,10.9043]
[1642602992644,1.99123781,137.59,137.52,10.53]
[1642602992844,1.99123781,137.59,137.52,16.78]
[1642602993042,1.99123781,137.6,137.52,23.642]
[1642602993247,2.907,137.59,137.52,23.642]
[1642602993444,1.99123781,137.61,137.54,10.904]
[1642602993645,1.99123781,137.61,137.55,10.53]
[1642602993845,6.9134,137.62,137.56,2.907]
[1642602993846,4.0064,137.62,137.56,2.907]
[1642602994044,4.0064,137.62,137.57,16.53]
[1642602994243,4.0064,137.62,137.57,16.78]
[1642602994446,4.0064,137.62,137.57,18.14302278]
[1642602995045,4.0064,137.62,137.58,10.8992]
[1642602995243,4.0064,137.62,137.59,10.78]
[1642602995444,4.0064,137.62,137.6,6.06439994]
[1642602995645,4.0064,137.62,137.61,10.53]
[1642602995845,4.0064,137.62,137.61,16.78]
[1642602996144,4.0064,137.62,137.61,27.6766]
[1642602996947,1.799173,137.62,137.61,27.6766]
[1642602997146,2.907,137.67,137.61,37.78579997]
[1642602997350,2.906,137.69,137.61,42.18102272]
[1642602997547,2.98362902,137.71,137.61,42.18102272]
[1642602997747,0.07962902,137.71,137.61,42.18102272]
[1642602997948,0.07962902,137.71,137.62,22.74880998]
[1642602998147,0.07962902,137.71,137.64,10.8919]
[1642602998347,0.07962902,137.71,137.65,11.5736941]
[1642602998546,0.07962902,137.71,137.65,17.8236941]
[1642602999348,0.07962902,137.71,137.66,10.8919]
[1642602999546,0.07962902,137.71,137.67,16.53]
[1642602999748,0.07962902,137.71,137.68,3.03219997]
[1642602999952,0.07962902,137.71,137.69,10.53]
[1642603000150,0.07962902,137.71,137.69,16.78]
[1642603000350,0.07962902,137.71,137.69,27.6712]
[1642603000549,0.07962902,137.71,137.69,21.4212]
[1642603000750,2.94191311,137.7,137.69,10.53]
[1642603000951,2.94191311,137.7,137.68,3.03219997]
[1642603001550,2.94191311,137.7,137.69,18.17972608]
[1642603001748,2.94191311,137.7,137.68,3.03219997]
[1642603001749,0.03791311,137.7,137.68,3.03219997]
[1642603002149,0.03791311,137.7,137.69,3.03219997]
[1642603002749,0.03791311,137.7,137.69,3.28219997]
[1642603003150,0.03791311,137.7,137.69,3.03219997]
[1642603003351,2.94191311,137.7,137.69,3.03219997]
[1642603003552,2.94191311,137.7,137.66,10.53]
[1642603004153,37.30835749,137.69,137.66,10.53]
[1642603004354,2.904,137.68,137.66,10.53]
[1642603004559,2.904,137.69,137.66,13.56219997]
[1642603005652,0.03791311,137.7,137.66,13.56219997]
[1642603005853,2.94191311,137.7,137.67,0.25]
[1642603006053,2.94191311,137.7,137.68,3.03219997]
[1642603007754,2.94191311,137.7,137.69,0.25]
[1642603008053,0.03791311,137.7,137.68,3.03219997]
[1642603008454,3.07011308,137.7,137.68,3.03219997]
[1642603008655,3.07011308,137.7,137.69,0.25]
[1642603008855,0.03791311,137.7,137.69,0.25]
[1642603010659,0.03791311,137.7,137.68,3.03219997]
[1642603011092,0.03791311,137.7,137.69,0.25]
[1642603011691,0.03791311,137.7,137.68,3.03219997]
[1642603012091,3.03219997,137.69,137.66,10.53]
[1642603012291,3.03219997,137.69,137.67,0.25]
[1642603012493,0.03791311,137.7,137.67,0.25]
[1642603013091,0.03791311,137.7,137.66,10.53]
[1642603014791,0.03791311,137.7,137.67,23.34515345]
[1642603014991,0.03791311,137.7,137.68,3.03219997]
[1642603015191,0.03791311,137.7,137.69,0.25]
[1642603015395,0.03791311,137.7,137.68,3.03219997]
[1642603015592,0.03791311,137.7,137.69,0.25]
[1642603016193,0.03791311,137.7,137.68,3.03219997]
[1642603016392,0.03791311,137.7,137.62,2.904]
[1642603016593,5.93619997,137.69,137.63,16.53]
[1642603016792,5.43619997,137.69,137.64,0.25]
[1642603017899,2.904,137.69,137.65,10.53]
[1642603018096,0.03791311,137.7,137.66,5.32028415]
[1642603018298,0.03791311,137.7,137.67,10.53]
[1642603018501,0.03791311,137.7,137.68,3.03219997]
[1642603018699,0.03791311,137.7,137.68,3.53219997]
[1642603021005,0.03791311,137.7,137.69,0.25]
[1642603021407,0.03791311,137.7,137.69,19.25334356]
[1642603022206,0.03791311,137.7,137.69,0.25]
[1642603022608,1.63760536,137.75,137.69,0.25]
[1642603022807,10.8943,137.75,137.68,11.1435]
[1642603023009,9.8943,137.75,137.68,0.25]
[1642603023808,48.68692389,137.75,137.68,0.25]
[1642603024010,51.59092389,137.75,137.67,10.53]
[1642603024412,55.62431977,137.75,137.67,10.53]
[1642603025112,10.8991,137.72,137.67,10.53]
[1642603025311,2.904,137.71,137.67,10.53]
[1642603026310,10.8987,137.7,137.67,10.53]
[1642603026510,2.53219997,137.69,137.67,10.53]
[1642603027112,38.58059556,137.69,137.67,10.53]
[1642603027511,2.53219997,137.69,137.67,10.53]
[1642603027922,2.53219997,137.69,137.61,12.07547445]
[1642603028113,2.53219997,137.69,137.6,158.9667]
[1642603028114,2.904,137.68,137.62,10.53]
[1642603028514,6.93739588,137.71,137.62,10.53]
[1642603028813,2.904,137.71,137.62,10.53]
[1642603029014,10.8979,137.71,137.63,18.29270379]
[1642603029213,10.8979,137.71,137.64,0.25]
[1642603030014,6.93739588,137.73,137.65,10.53]
[1642603030214,4.03339588,137.73,137.67,10.8937]
[1642603030415,39.19016547,137.77,137.67,10.8937]
[1642603030416,4.03339588,137.77,137.67,21.4237]
[1642603030719,2.904,137.76,137.68,0.25]
[1642603030915,2.904,137.76,137.69,10.53]
[1642603031315,2.904,137.76,137.7,11.1423]
[1642603032122,2.904,137.76,137.71,10.53]
[1642603032321,2.904,137.77,137.71,83.33]
[1642603032523,2.903,137.78,137.72,0.25]
[1642603032724,2.903,137.78,137.72,7.11282307]
[1642603032922,2.903,137.78,137.72,18.00332307]
[1642603033925,2.903,137.78,137.72,11.1405]
[1642603034223,37.8828,137.79,137.72,10.53]
[1642603034523,2.903,137.77,137.72,10.53]
[1642603034722,2.903,137.78,137.72,10.53]
[1642603035122,13.7947,137.78,137.72,10.53]
[1642603035322,2.903,137.78,137.73,0.25]
[1642603035821,26.9918,137.79,137.72,0.25]
[1642603036424,26.9918,137.79,137.72,11.1409]
[1642603036824,26.4918,137.79,137.72,21.6709]
[1642603039547,2.903,137.79,137.72,23.03392278]
[1642603039749,2.903,137.79,137.73,6.0]
[1642603039954,2.903,137.81,137.74,21.4175]
[1642603040154,2.903,137.82,137.74,21.6675]
[1642603040350,2.903,137.82,137.74,24.17266059]
[1642603040548,0.25,137.81,137.74,21.6675]
[1642603040750,2.903,137.8,137.74,21.6675]
[1642603041550,2.903,137.8,137.74,42.15092446]
[1642603043656,2.903,137.8,137.76,10.8853]
[1642603044253,2.0238939,137.79,137.69,11.1217]
[1642603044556,2.904,137.78,137.68,10.53]
[1642603044752,0.25,137.77,137.68,10.53]
[1642603044952,2.904,137.76,137.68,10.53]
[1642603045153,0.25,137.75,137.68,10.53]
[1642603045453,2.904,137.74,137.68,10.53]
[1642603046053,2.904,137.75,137.69,0.25]
[1642603046454,49.5513,137.78,137.69,0.25]
[1642603046653,0.25,137.77,137.69,0.25]
[1642603046859,2.904,137.76,137.69,19.84876227]
[1642603047060,2.904,137.76,137.69,30.73866227]
[1642603047259,2.904,137.77,137.69,30.73866227]
[1642603047558,46.6473,137.78,137.69,30.73866227]
[1642603049558,46.6473,137.78,137.7,16.53]
[1642603049761,46.6473,137.78,137.71,11.1378]
[1642603049959,46.6473,137.78,137.72,10.53]
[1642603050261,46.6473,137.78,137.73,4.19374181]
[1642603050459,2.903,137.82,137.73,4.19374181]
[1642603050660,0.25,137.81,137.73,4.19374181]
[1642603050863,2.903,137.8,137.73,4.19374181]
[1642603051662,2.903,137.8,137.72,10.53]
[1642603051860,0.25,137.79,137.72,10.53]
[1642603052061,2.903,137.78,137.72,10.53]
[1642603052263,2.903,137.8,137.72,10.53]
[1642603053062,2.903,137.8,137.73,6.41847283]
[1642603053663,2.903,137.81,137.73,6.41847283]
[1642603054163,2.903,137.81,137.72,10.53]
[1642603055165,41.40697363,137.8,137.73,0.25]
[1642603055764,0.25,137.8,137.73,0.25]
[1642603056065,0.25,137.8,137.72,10.53]
[1642603056265,2.903,137.79,137.72,10.53]
[1642603056964,2.903,137.79,137.72,30.15202125]
[1642603057364,2.903,137.79,137.72,10.53]
[1642603057764,2.0238939,137.78,137.69,10.53]
[1642603057965,0.25,137.78,137.69,10.53]
[1642603058168,2.904,137.77,137.69,10.53]
[1642603058368,46.75946725,137.76,137.69,10.53]
[1642603058566,57.65446725,137.76,137.69,10.53]
[1642603058766,2.904,137.77,137.69,10.53]
[1642603059168,2.904,137.77,137.7,0.25]
[1642603059369,2.904,137.78,137.7,0.25]
[1642603059570,13.7962,137.78,137.69,10.53]
[1642603059769,49.75413666,137.77,137.69,10.53]
[1642603060170,6.93739588,137.78,137.7,0.25]
[1642603060369,4.03339588,137.78,137.7,1.61587582]
[1642603060569,4.03339588,137.79,137.7,0.25]
[1642603060974,31.34099588,137.8,137.7,0.25]
[1642603061171,48.16114303,137.78,137.69,10.53]
[1642603061372,3.154,137.77,137.69,10.53]
[1642603061871,10.8934,137.76,137.69,10.53]
[1642603062074,3.154,137.77,137.69,10.53]
[1642603062373,0.25,137.77,137.7,0.25]
[1642603063516,79.95313891,137.78,137.7,0.25]
[1642603063672,77.04913891,137.78,137.7,0.25]
[1642603063871,28.88799588,137.78,137.7,0.25]
[1642603064074,4.03339588,137.79,137.71,10.53]
[1642603064276,6.93739588,137.8,137.72,0.25]
[1642603064475,4.03339588,137.81,137.73,10.53]
[1642603064674,2.903,137.79,137.74,0.25]
[1642603064880,2.903,137.8,137.74,17.83783386]
[1642603065179,4.03339588,137.81,137.73,10.53]
[1642603065381,2.903,137.79,137.73,10.53]
[1642603065582,2.903,137.8,137.73,10.53]
[1642603065980,4.6768939,137.8,137.68,2.903]
[1642603066179,17.82699588,137.8,137.69,21.4194]
[1642603066381,6.93639588,137.8,137.69,21.4194]
[1642603066580,6.93639588,137.8,137.7,20.90000454]
[1642603066887,2.903,137.8,137.7,20.90000454]
[1642603067292,2.903,137.8,137.67,2.903]
[1642603067293,27.7284,137.8,137.67,39.199]
[1642603067482,27.7284,137.8,137.68,10.78]
[1642603067684,27.7284,137.8,137.69,72.8]
[1642603067881,27.7284,137.8,137.7,10.53]
[1642603068083,27.7284,137.8,137.7,10.78]
[1642603068484,27.7284,137.8,137.7,21.6693]
[1642603068884,27.7284,137.8,137.71,6.0]
[1642603069084,27.7284,137.8,137.72,23.25757954]
[1642603069685,2.903,137.8,137.75,10.8843]
[1642603070085,24.5645,137.84,137.75,10.8843]
[1642603070086,2.903,137.82,137.76,6.0]
[1642603070286,2.903,137.82,137.75,10.8843]
[1642603070287,2.903,137.82,137.73,10.53]
[1642603070485,62.76318912,137.84,137.73,10.53]
[1642603070486,2.903,137.83,137.73,10.53]
[1642603070685,2.903,137.81,137.74,6.0]
[1642603070884,2.903,137.83,137.73,10.53]
[1642603071311,41.15845746,137.81,137.69,10.53]
[1642603071510,26.9206,137.8,137.69,10.53]
[1642603071711,30.95399588,137.8,137.69,10.53]
[1642603072512,31.20399588,137.8,137.69,10.53]
[1642603073010,8.14436571,137.79,137.69,10.53]
[1642603073210,54.16567514,137.78,137.69,10.53]
[1642603074010,2.904,137.78,137.69,10.53]
[1642603074412,2.904,137.79,137.69,10.53]
[1642603074614,2.904,137.79,137.7,6.0]
[1642603074813,2.904,137.79,137.7,10.53]
[1642603075014,2.904,137.79,137.7,32.87834387]
[1642603075213,2.904,137.79,137.7,33.12834387]
[1642603076416,38.71103546,137.79,137.7,33.12834387]
[1642603076621,49.60233546,137.79,137.7,10.78]
[1642603077418,49.60233546,137.79,137.7,10.53]
[1642603077820,53.63573134,137.79,137.7,10.53]
[1642603078321,4.03339588,137.77,137.66,10.53]
[1642603078518,2.904,137.76,137.66,10.53]
[1642603078719,10.8982,137.73,137.66,10.53]
[1642603078920,2.904,137.72,137.66,10.53]
[1642603079318,39.1358409,137.75,137.66,10.53]
[1642603079519,2.904,137.74,137.66,10.53]
[1642603079920,2.904,137.74,137.66,11.89861222]
[1642603080322,2.904,137.74,137.66,10.53]
[1642603080921,44.49677949,137.73,137.66,10.53]
[1642603081132,2.904,137.72,137.66,10.53]
[1642603081820,22.9942,137.75,137.66,10.53]
[1642603082423,10.8964,137.73,137.66,10.53]
[1642603082621,36.3179,137.77,137.66,10.53]
[1642603082822,2.904,137.76,137.66,10.53]
[1642603083023,26.7802,137.78,137.67,6.0]
[1642603083224,26.7802,137.78,137.68,10.53]
[1642603083523,35.47246836,137.77,137.69,6.0]
[1642603083723,35.47246836,137.77,137.7,0.25]
[1642603084422,35.47246836,137.77,137.68,10.53]
[1642603084623,2.904,137.76,137.68,10.53]
[1642603084824,2.904,137.76,137.68,15.55587665]
[1642603085025,2.904,137.76,137.68,10.53]
[1642603085429,2.904,137.76,137.68,84.69861222]
[1642603085625,2.904,137.77,137.68,84.69861222]
[1642603086228,13.7968,137.77,137.68,84.69861222]
[1642603086427,2.904,137.77,137.69,19.30873599]
[1642603086629,60.45440239,137.78,137.7,10.53]
[1642603086829,60.45440239,137.78,137.7,10.78]
[1642603087028,23.8762,137.78,137.7,10.78]
[1642603087228,23.8762,137.78,137.7,83.58]
[1642603087428,27.2856,137.79,137.7,84.94861222]
[1642603087429,2.904,137.79,137.7,84.94861222]
[1642603087632,2.903,137.8,137.71,6.0]
[1642603087830,2.903,137.81,137.72,10.53]
[1642603088032,2.903,137.82,137.73,6.0]
[1642603089029,2.903,137.82,137.72,15.01376809]
[1642603089234,13.7921,137.82,137.72,15.01376809]
[1642603089431,36.4417,137.82,137.73,6.0]
[1642603089630,36.4417,137.82,137.73,16.53]
[1642603090632,83.85763361,137.82,137.73,16.53]
[1642603094034,36.4417,137.82,137.73,16.53]
[1642603094235,2.903,137.82,137.73,89.33]
[1642603094439,2.903,137.82,137.74,1.36640431]
[1642603094635,2.903,137.83,137.75,10.53]
[1642603094835,4.03339588,137.85,137.75,10.53]
[1642603094836,2.902,137.84,137.75,10.53]
[1642603095041,2.902,137.82,137.75,10.53]
[1642603095237,10.8891,137.81,137.75,10.53]
[1642603095440,2.903,137.8,137.75,10.53]
[1642603095739,10.8891,137.81,137.75,10.53]
[1642603097137,13.7921,137.81,137.75,10.53]
[1642603097336,10.8891,137.81,137.75,10.53]
[1642603097536,2.903,137.8,137.75,10.53]
[1642603097737,10.8922,137.79,137.72,10.53]
[1642603098141,2.903,137.78,137.72,10.53]
[1642603098337,10.8922,137.79,137.72,10.53]
[1642603098939,13.7927,137.81,137.72,10.53]
[1642603099738,61.7056647,137.81,137.72,33.88725653]
[1642603100740,13.7927,137.81,137.72,33.88725653]
[1642603101140,2.903,137.82,137.72,33.88725653]
[1642603101739,2.903,137.83,137.73,72.8]
[1642603101940,2.903,137.83,137.73,94.2175]
[1642603102441,13.7904,137.83,137.73,94.2175]
[1642603103742,13.7904,137.83,137.73,10.53]
[1642603104144,17.82379588,137.83,137.73,10.53]
[1642603104343,8.13974693,137.82,137.73,10.53]
[1642603104543,10.8911,137.8,137.73,10.53]
[1642603104771,2.903,137.81,137.74,16.78195226]
[1642603104944,2.903,137.83,137.74,16.78195226]
[1642603105144,2.903,137.83,137.75,10.53]
[1642603106350,10.8885,137.82,137.75,10.53]
[1642603106550,2.903,137.81,137.75,10.53]
[1642603108254,13.7919,137.81,137.75,10.53]
[1642603108453,2.903,137.83,137.75,10.53]
[1642603109456,50.12616666,137.82,137.75,10.53]
[1642603111365,2.903,137.81,137.75,10.53]
[1642603111566,10.891,137.8,137.75,10.53]
[1642603112065,46.75065417,137.79,137.75,10.53]
[1642603112277,49.65365417,137.79,137.75,10.53]
[1642603112482,46.75065417,137.79,137.75,10.53]
[1642603113288,10.8915,137.78,137.75,10.53]
[1642603113484,10.8915,137.78,137.72,10.53]
[1642603113485,2.53219997,137.77,137.72,10.53]
[1642603113686,5.43619997,137.77,137.72,10.53]
[1642603113986,2.53219997,137.77,137.72,10.53]
[1642603114186,10.8927,137.76,137.72,10.53]
[1642603114387,10.8927,137.76,137.7,22.05222567]
[1642603114587,10.8927,137.76,137.69,10.53]
[1642603115589,49.31086295,137.76,137.69,10.53]
[1642603115989,10.8957,137.74,137.69,10.53]
[1642603116286,38.41816295,137.76,137.69,10.53]
[1642603116287,2.904,137.73,137.69,10.53]
[1642603116487,2.904,137.74,137.69,10.53]
[1642603116687,35.32317149,137.73,137.69,10.53]
[1642603117092,35.32317149,137.73,137.65,10.53]
[1642603117289,10.8962,137.72,137.67,6.0]
[1642603117489,10.8962,137.72,137.66,6.0]
[1642603120590,58.73185651,137.72,137.66,6.0]
[1642603120998,58.73185651,137.72,137.65,10.53]
[1642603121394,10.8962,137.72,137.65,10.53]
[1642603122397,10.8962,137.72,137.66,22.42161858]
[1642603122998,10.8962,137.72,137.65,10.53]
[1642603123400,10.8962,137.72,137.65,21.4257]
[1642603123798,10.8949,137.74,137.65,94.2257]
[1642603123998,10.8949,137.74,137.66,6.0]
[1642603124197,23.2969,137.77,137.67,10.53]
[1642603124499,2.904,137.79,137.68,6.0]
[1642603124698,55.94466661,137.79,137.69,105.88258837]
[1642603124898,2.904,137.78,137.69,33.08258837]
[1642603125100,2.904,137.78,137.7,6.0]
[1642603125400,2.904,137.78,137.7,10.53]
[1642603126202,2.904,137.81,137.7,10.79]
[1642603126399,2.903,137.82,137.71,6.0]
[1642603126600,2.903,137.82,137.72,10.53]
[1642603127002,36.66617644,137.81,137.72,10.53]
[1642603127202,2.903,137.8,137.72,10.53]
[1642603127402,10.8908,137.79,137.72,10.53]
[1642603127602,41.82636269,137.78,137.72,10.53]
[1642603128002,10.8908,137.79,137.72,10.53]
[1642603128806,10.8908,137.79,137.73,0.25]
[1642603129003,44.3002269,137.78,137.73,0.25]
[1642603129204,55.1914269,137.78,137.73,0.25]
[1642603129706,10.8912,137.78,137.73,0.25]
[1642603131938,10.8912,137.78,137.72,10.53]
[1642603132543,2.903,137.77,137.72,10.53]
[1642603132740,10.893,137.76,137.72,10.53]
[1642603134243,10.8918,137.77,137.72,10.53]
[1642603134443,2.903,137.79,137.72,10.53]
[1642603134643,2.903,137.8,137.73,0.25]
[1642603135149,41.9895024,137.8,137.73,0.25]
[1642603135543,10.8903,137.79,137.72,10.53]
[1642603135746,2.903,137.78,137.72,10.53]
[1642603136145,0.25,137.77,137.72,10.53]
[1642603136347,3.153,137.77,137.72,10.53]
[1642603136548,37.91842171,137.76,137.72,10.53]
[1642603136846,10.8955,137.75,137.69,10.53]
[1642603137046,10.8955,137.75,137.7,6.0]
[1642603137246,10.8955,137.75,137.71,0.25]
[1642603137647,10.8955,137.75,137.7,6.0]
[1642603139051,2.904,137.78,137.71,10.78]
[1642603139248,24.5945,137.79,137.71,10.78]
[1642603139851,24.5945,137.79,137.72,16.31617737]
[1642603140151,24.5945,137.79,137.73,10.78]
[1642603140350,35.4847,137.79,137.73,10.78]
[1642603140950,35.4847,137.79,137.73,21.67]
[1642603141150,24.5945,137.79,137.73,21.67]
[1642603142352,2.903,137.79,137.73,21.67]
[1642603142650,2.903,137.81,137.73,21.67]
[1642603142852,4.95429403,137.81,137.73,21.67]
[1642603143050,2.903,137.81,137.73,21.67]
[1642603143251,2.903,137.81,137.74,6.0]
[1642603143456,13.7917,137.81,137.74,16.8886]
[1642603144153,13.7917,137.81,137.74,10.8886]
[1642603147755,13.7917,137.81,137.74,21.4186]
[1642603151358,15.84299403,137.81,137.74,21.4186]
[1642603152060,15.84299403,137.81,137.75,6.0]
[1642603152260,12.93999403,137.81,137.75,16.8883]
[1642603152660,12.93999403,137.81,137.75,10.8883]
[1642603154066,2.05129403,137.81,137.75,10.8883]
[1642603154865,37.55209403,137.82,137.76,10.53]
[1642603155062,26.66409403,137.82,137.76,27.4172]
[1642603155262,0.25,137.81,137.76,27.4172]
[1642603156063,0.25,137.81,137.76,21.4172]
[1642603156862,38.22752972,137.81,137.76,21.4172]
[1642603157069,38.22752972,137.81,137.7,1.99514054]
[1642603157295,10.8927,137.78,137.71,10.53]
[1642603157865,12.94399403,137.78,137.71,10.53]
[1642603158064,2.05129403,137.78,137.71,10.53]
[1642603158363,2.05129403,137.79,137.71,10.53]
[1642603158575,0.25,137.77,137.71,10.53]
[1642603158764,5.20429403,137.78,137.71,10.53]
[1642603158963,2.05129403,137.78,137.71,10.53]
[1642603159570,2.05129403,137.78,137.72,20.9076021]
[1642603159769,2.05129403,137.79,137.72,31.4376021]
[1642603160767,2.05129403,137.79,137.73,0.25]
[1642603161165,40.66029403,137.8,137.73,0.25]
[1642603162167,2.05129403,137.79,137.73,0.25]
[1642603162365,10.8921,137.78,137.73,0.25]
[1642603163967,12.94159403,137.79,137.73,0.25]
[1642603165369,2.05129403,137.79,137.73,11.1395]
[1642603165570,2.05129403,137.79,137.74,10.53]
[1642603165768,2.05129403,137.79,137.74,10.78]
[1642603165970,37.75729403,137.8,137.74,10.78]
[1642603166374,37.75729403,137.8,137.75,6.81509644]
[1642603166671,12.94079403,137.8,137.75,6.81509644]
[1642603166872,2.05129403,137.8,137.75,6.81509644]
[1642603167874,2.05129403,137.8,137.74,10.78]
[1642603168777,2.05129403,137.8,137.74,29.21145312]
[1642603168977,12.94139403,137.8,137.74,102.01145312]